bitfinex-derivatives/quotes_BTCF0:USTF0_20210105
["timestamp","ask_amount","ask_price","bid_price","bid_amount"]
[1609846617504,0.10724,31619.0,31595.0,0.13632608]
[1609846617705,0.5501,31639.0,31595.0,0.13632608]
[1609846618606,0.13632608,31614.0,31613.0,0.13632608]
[1609846620006,0.13632608,31614.0,31591.0,0.14796]
[1609846620206,0.13632608,31614.0,31590.0,0.0946]
[1609846620608,0.13632608,31609.0,31608.0,0.13632608]
[1609846625219,0.10356,31620.0,31608.0,0.13632608]
[1609846625419,0.5501,31639.0,31608.0,0.24551608]
[1609846626319,0.2776,31639.0,31608.0,0.24551608]
[1609846626519,0.2776,31639.0,31635.0,0.13632608]
[1609846627120,0.2776,31639.0,31620.0,0.13136]
[1609846628522,0.2776,31639.0,31634.0,0.13632608]
[1609846630625,0.2776,31639.0,31638.0,0.13632608]
[1609846631725,0.2776,31639.0,31628.0,0.10492]
[1609846632126,0.2776,31639.0,31620.0,0.13136]
[1609846632326,0.2776,31639.0,31614.0,4.4088]
[1609846632727,0.2776,31639.0,31626.0,0.13632608]
[1609846633326,0.2776,31639.0,31619.0,0.12414]
[1609846634727,0.2776,31639.0,31621.0,0.13632608]
[1609846635229,4.276,31631.0,31621.0,0.13632608]
[1609846635431,4.276,31631.0,31619.0,0.12414]
[1609846636730,0.13632608,31620.0,31619.0,0.12414]
[1609846637430,0.13632608,31620.0,31614.0,0.13632608]
[1609846638032,0.13632608,31620.0,31608.0,0.10919]
[1609846638232,0.13632608,31620.0,31598.0,3.7201]
[1609846638632,0.12205,31625.0,31610.0,0.13632608]
[1609846640533,0.65105,31625.0,31610.0,0.13632608]
[1609846640732,0.13632608,31611.0,31601.0,0.13632608]
[1609846640933,0.13632608,31611.0,31599.0,0.13056]
[1609846641332,0.65322608,31611.0,31599.0,0.13056]
[1609846641732,0.65322608,31611.0,31587.0,1.907511]
[1609846642735,0.5169,31611.0,31597.0,0.13632608]
[1609846643635,0.13005,31616.0,31597.0,0.13632608]
[1609846643834,3.9142,31605.0,31591.0,0.12464]
[1609846644636,0.13632608,31592.0,31581.0,1.92366978]
[1609846645036,4.0335,31591.0,31581.0,1.92366978]
[1609846645238,0.13632608,31592.0,31581.0,1.92366978]
[1609846645437,0.13632608,31592.0,31575.0,0.13153]
[1609846646636,0.13632608,31592.0,31591.0,0.13632608]
[1609846648240,0.11161,31599.0,31591.0,0.13632608]
[1609846648642,0.13632608,31596.0,31591.0,0.13632608]
[1609846650744,0.13632608,31596.0,31595.0,0.13632608]
[1609846652046,0.11161,31599.0,31595.0,0.13632608]
[1609846652246,0.12907,31608.0,31595.0,0.13632608]
[1609846652445,0.2785,31615.0,31595.0,0.13632608]
[1609846652644,0.2785,31615.0,31610.0,0.13632608]
[1609846653045,0.82148361,31616.0,31610.0,0.13632608]
[1609846654446,0.82148361,31616.0,31598.0,0.10344]
[1609846654646,0.13632608,31608.0,31607.0,0.13632608]
[1609846656948,0.298,31621.0,31607.0,0.13632608]
[1609846658549,0.12205,31625.0,31607.0,0.13632608]
[1609846658749,0.13632608,31624.0,31621.0,0.13632608]
[1609846658950,0.11305,31629.0,31621.0,0.78372608]
[1609846659551,0.11305,31629.0,31621.0,0.13632608]
[1609846659952,0.2795,31634.0,31621.0,0.13632608]
[1609846660853,0.2795,31634.0,31613.0,0.14783]
[1609846662854,0.13632608,31621.0,31620.0,0.13632608]
[1609846671662,0.14199,31628.0,31620.0,0.13632608]
[1609846671863,0.2795,31634.0,31620.0,0.13632608]
[1609846672062,0.2795,31634.0,31621.0,5.1008]
[1609846672864,0.2795,31634.0,31633.0,0.13632608]
[1609846673965,0.12391,31636.0,31633.0,0.13632608]
[1609846674164,0.2701,31644.0,31633.0,0.13632608]
[1609846674964,0.2701,31644.0,31641.0,0.13632608]
[1609846675164,0.96047812,31651.0,31641.0,0.13632608]
[1609846676869,0.13632608,31642.0,31641.0,0.13632608]
[1609846677067,0.28565608,31642.0,31641.0,0.13632608]
[1609846678272,0.28565608,31642.0,31634.0,4.3051]
[1609846678872,0.14933,31642.0,31637.0,0.13632608]
[1609846680875,0.13632608,31638.0,31637.0,0.13632608]
[1609846681874,0.13632608,31638.0,31621.0,0.1095]
[1609846682075,4.51432608,31638.0,31621.0,0.1095]
[1609846682274,4.51432608,31638.0,31613.0,4.36293]
[1609846682474,0.13632608,31638.0,31613.0,0.14783]
[1609846682675,0.13632608,31638.0,31606.0,0.09789]
[1609846682676,4.7334,31627.0,31606.0,0.09789]
[1609846682875,4.7334,31627.0,31611.0,0.13632608]
[1609846684074,4.7334,31627.0,31595.0,3.8346]
[1609846684075,0.0955,31626.0,31595.0,3.8346]
[1609846684876,0.13632608,31609.0,31606.0,0.13632608]
[1609846685075,0.28386608,31609.0,31606.0,0.13632608]
[1609846686279,0.13632608,31609.0,31606.0,0.13632608]
[1609846688485,0.23932608,31609.0,31606.0,0.13632608]
[1609846692291,0.23932608,31609.0,31594.0,0.12921]
[1609846693091,0.13632608,31601.0,31600.0,0.13632608]
[1609846697497,0.103,31609.0,31600.0,0.13632608]
[1609846697899,0.14164,31617.0,31600.0,0.13632608]
[1609846698100,0.2824,31627.0,31600.0,0.13632608]
[1609846698700,0.2824,31627.0,31605.0,5.236]
[1609846699100,0.2824,31627.0,31619.0,0.13632608]
[1609846699501,0.0955,31626.0,31605.0,5.236]
[1609846699701,0.0955,31626.0,31602.0,0.12699]
[1609846699900,4.5309,31625.0,31602.0,0.12699]
[1609846701004,0.13632608,31603.0,31602.0,0.26331608]
[1609846708317,0.13241,31616.0,31602.0,0.12699]
[1609846708516,0.13241,31616.0,31594.0,0.12921]
[1609846708716,0.13241,31616.0,31591.0,4.5799]
[1609846711322,0.13241,31616.0,31603.0,0.13632608]
[1609846712426,5.23729925,31637.0,31604.0,4.7152]
[1609846713325,5.23729925,31637.0,31617.0,0.13632608]
[1609846713726,1.07569925,31637.0,31617.0,0.13632608]
[1609846714731,0.0945,31641.0,31617.0,0.13632608]
[1609846715329,0.13632608,31618.0,31617.0,0.13632608]
[1609846717233,0.13632608,31618.0,31609.0,0.10333]
[1609846718031,0.13632608,31618.0,31605.0,0.13632608]
[1609846718633,4.3513,31621.0,31600.0,0.11023]
[1609846718832,4.3513,31621.0,31597.0,4.1335]
[1609846719435,4.3513,31621.0,31602.0,0.13632608]
[1609846721336,0.13632608,31603.0,31602.0,0.13632608]
[1609846724142,0.13632608,31603.0,31602.0,0.74762608]
[1609846724541,0.13134,31614.0,31602.0,0.74762608]
[1609846724941,0.12538,31622.0,31602.0,0.13632608]
[1609846725142,8e-05,31622.0,31617.0,5.1493]
[1609846725346,1.07615752,31637.0,31621.0,0.13632608]
[1609846725751,0.90727551,31632.0,31621.0,0.13632608]
[1609846725954,1.3302417,31635.0,31621.0,0.13632608]
[1609846726143,1.3302417,31635.0,31626.0,0.13834]
[1609846726947,0.85574539,31635.0,31626.0,0.13834]
[1609846727143,0.85574539,31635.0,31628.0,4.7063]
[1609846727347,0.13632608,31636.0,31634.0,0.13632608]
[1609846729346,0.13632608,31636.0,31633.0,3.5647]
[1609846729544,0.0942,31656.0,31633.0,3.5647]
[1609846733347,0.13632608,31634.0,31633.0,3.5647]
[1609846735351,0.13632608,31634.0,31633.0,3.70102608]
[1609846735952,0.14462,31648.0,31633.0,3.70102608]
[1609846737355,0.13632608,31636.0,31633.0,3.70102608]
[1609846738257,0.12031,31655.0,31633.0,3.70102608]
[1609846738456,0.12031,31655.0,31633.0,0.24721608]
[1609846738657,0.12031,31655.0,31639.0,4.9273]
[1609846739456,0.12031,31655.0,31654.0,0.13632608]
[1609846739856,0.12031,31655.0,31654.0,4.54322608]
[1609846740557,1.07455705,31670.0,31654.0,4.54322608]
[1609846741059,1.07455705,31670.0,31654.0,0.13632608]
[1609846741259,1.0743852,31672.0,31654.0,0.13632608]
[1609846741458,1.0743852,31672.0,31659.0,3.8275]
[1609846742262,2.30249429,31683.0,31659.0,3.8275]
[1609846742263,1.16866346,31679.0,31659.0,3.8275]
[1609846743361,0.13632608,31660.0,31659.0,3.8275]
[1609846745163,0.13632608,31660.0,31654.0,0.13632608]
[1609846745364,0.13632608,31660.0,31659.0,0.13632608]
[1609846747769,0.13632608,31660.0,31659.0,0.84922608]
[1609846748268,0.12337,31669.0,31659.0,0.84922608]
[1609846748670,0.2905,31683.0,31659.0,0.84922608]
[1609846749370,0.2905,31683.0,31677.0,0.13632608]
[1609846752978,0.2905,31683.0,31676.0,4.5599]
[1609846753174,0.43955,31683.0,31668.0,0.09934]
[1609846753374,0.13632608,31672.0,31669.0,0.13632608]
[1609846754276,0.13632608,31672.0,31664.0,3.6142]
[1609846755477,0.10254,31675.0,31668.0,0.13632608]
[1609846757476,0.13632608,31669.0,31668.0,0.13632608]
[1609846758079,0.13632608,31669.0,31664.0,3.6142]
[1609846758278,0.13632608,31669.0,31655.0,0.12459]
[1609846758677,0.13632608,31669.0,31646.0,3.5937]
[1609846759479,0.10254,31675.0,31666.0,0.13632608]
[1609846759678,0.43955,31683.0,31666.0,0.13632608]
[1609846760879,0.094,31682.0,31666.0,0.13632608]
[1609846761281,0.094,31682.0,31663.0,3.8977]
[1609846761480,0.13632608,31664.0,31663.0,3.8977]
[1609846761881,0.13632608,31664.0,31661.0,0.13632608]
[1609846763780,0.10794,31676.0,31661.0,0.13632608]
[1609846764182,0.43955,31683.0,31661.0,0.13632608]
[1609846765384,0.43955,31683.0,31681.0,0.13632608]
[1609846765986,0.43955,31683.0,31676.0,4.3192]
[1609846767385,0.43955,31683.0,31677.0,0.13632608]
[1609846769392,0.13632608,31678.0,31677.0,0.13632608]
[1609846770389,0.13632608,31678.0,31670.0,0.13944]
[1609846770590,0.13632608,31678.0,31663.0,5.1895]
[1609846770792,0.13632608,31678.0,31659.0,0.14852]
[1609846770990,0.13632608,31678.0,31651.0,3.8192]
[1609846771390,3.89703,31681.0,31665.0,0.13632608]
[1609846771590,3.99123,31681.0,31665.0,0.13632608]
[1609846772893,0.20643,31681.0,31665.0,0.13632608]
[1609846773395,0.13632608,31666.0,31665.0,0.13632608]
[1609846774598,0.13632608,31666.0,31637.0,0.0944]
[1609846774797,0.13632608,31666.0,31639.0,4.6588]
[1609846775498,4.6203,31667.0,31641.0,0.13632608]
[1609846775698,0.0934,31666.0,31639.0,4.6588]
[1609846777402,0.13632608,31640.0,31639.0,4.6588]
[1609846781007,0.13632608,31640.0,31638.0,0.11367]
[1609846781207,0.13632608,31640.0,31629.0,5.073]
[1609846781409,0.13632608,31634.0,31633.0,0.13632608]
[1609846789122,0.13632608,31634.0,31633.0,4.00172608]
[1609846789621,0.13632608,31641.0,31633.0,4.00172608]
[1609846789821,0.13632608,31641.0,31633.0,4.13712608]
[1609846790621,0.2794,31665.0,31633.0,4.13712608]
[1609846791524,0.2794,31665.0,31652.0,0.13632608]
[1609846791925,0.2794,31665.0,31644.0,0.12673]
[1609846793324,0.2794,31665.0,31633.0,4.0008]
[1609846793525,0.2794,31665.0,31643.0,0.13632608]
[1609846794727,0.374,31665.0,31643.0,0.13632608]
[1609846795127,0.2794,31665.0,31643.0,0.13632608]
[1609846795530,0.13632608,31644.0,31643.0,0.13632608]
[1609846799134,0.13632608,31644.0,31643.0,0.67262608]
[1609846804342,0.13632608,31644.0,31643.0,0.77995608]
[1609846808046,0.13632608,31644.0,31643.0,0.24365608]
[1609846808246,0.13632608,31644.0,31643.0,0.10733]
[1609846809449,0.13632608,31644.0,31635.0,4.0586]
[1609846809649,3.5927,31658.0,31638.0,0.13632608]
[1609846811654,0.13632608,31639.0,31638.0,0.13632608]
[1609846816159,0.13632608,31639.0,31638.0,4.37322608]
[1609846816360,0.13632608,31639.0,31638.0,0.13632608]
[1609846817263,0.13632608,31639.0,31633.0,3.9647]
[1609846817760,0.13632608,31634.0,31633.0,3.9647]
[1609846817961,0.13632608,31634.0,31633.0,0.1354]
[1609846818162,0.13632608,31634.0,31622.0,4.6442]
[1609846819760,0.13632608,31623.0,31622.0,4.6442]
[1609846820161,0.13632608,31623.0,31611.0,0.13632608]
[1609846821663,0.11964,31637.0,31615.0,0.13632608]
[1609846823665,0.13632608,31616.0,31615.0,0.13632608]
[1609846825866,0.13632608,31616.0,31614.0,0.13339]
[1609846827066,0.13632608,31616.0,31608.0,4.5529]
[1609846827671,0.10041,31628.0,31609.0,0.13632608]
[1609846828070,0.10041,31628.0,31609.0,0.25038608]
[1609846829673,0.10041,31628.0,31609.0,0.11406]
[1609846831275,4.4523,31629.0,31609.0,0.11406]
[1609846831674,0.13632608,31610.0,31609.0,0.11406]
[1609846833174,0.13632608,31610.0,31607.0,0.13632608]
[1609846838579,0.13632608,31610.0,31609.0,3.5995]
[1609846838781,0.13632608,31610.0,31609.0,3.72099]
[1609846838979,0.13274,31625.0,31609.0,3.72099]
[1609846839179,3.8297,31633.0,31609.0,3.72099]
[1609846839780,3.8297,31633.0,31616.0,0.13632608]
[1609846839981,3.8297,31633.0,31616.0,0.25263608]
[1609846841181,3.8297,31633.0,31616.0,0.11631]
[1609846841782,0.13632608,31617.0,31609.0,3.72099]
[1609846843688,0.13632608,31610.0,31609.0,3.72099]
[1609846843886,0.13632608,31610.0,31609.0,0.12149]
[1609846844287,0.13632608,31610.0,31607.0,0.13632608]
[1609846846889,3.5992,31623.0,31607.0,0.13632608]
[1609846847089,0.13078,31627.0,31607.0,0.13632608]
[1609846847290,0.13078,31627.0,31611.0,4.5887]
[1609846847490,5.3331,31639.0,31611.0,4.5887]
[1609846847689,5.3331,31639.0,31616.0,0.13632608]
[1609846847890,0.21344,31637.0,31616.0,0.13632608]
[1609846848089,0.11964,31637.0,31616.0,0.13632608]
[1609846849092,0.21314,31637.0,31616.0,0.13632608]
[1609846849292,0.11964,31637.0,31616.0,0.13632608]
[1609846849793,0.13632608,31617.0,31616.0,0.13632608]
[1609846850295,0.13632608,31617.0,31615.0,0.13101]
[1609846850494,0.13632608,31617.0,31606.0,4.2864]
[1609846851797,4.2435,31624.0,31608.0,0.13632608]
[1609846852597,4.2435,31624.0,31606.0,4.2864]
[1609846853800,0.14891,31627.0,31607.0,0.13632608]
[1609846853999,0.14891,31627.0,31612.0,4.1968]
[1609846854400,0.11964,31637.0,31612.0,4.31888]
[1609846855804,0.11964,31637.0,31616.0,0.13632608]
[1609846858007,0.13632608,31617.0,31616.0,0.13632608]
[1609846859815,0.13632608,31617.0,31605.0,0.13698]
[1609846860013,5.1581,31611.0,31605.0,0.13698]
[1609846860413,0.13632608,31617.0,31600.0,1.91572769]
[1609846860614,3.6381,31606.0,31600.0,2.04824769]
[1609846861214,3.6381,31606.0,31601.0,0.0959]
[1609846861415,3.6381,31606.0,31600.0,1.91572769]
[1609846861815,3.6381,31606.0,31593.0,0.12796]
[1609846862016,0.5791,31600.0,31593.0,0.12796]
[1609846863917,0.13632608,31594.0,31593.0,0.12796]
[1609846866519,0.13632608,31594.0,31588.0,0.13632608]
[1609846867720,0.10496,31613.0,31588.0,0.13632608]
[1609846867921,0.07868641,32997.0,31604.0,0.13632608]
[1609846867922,0.13632608,31605.0,31604.0,0.13632608]
[1609846868121,0.13632608,31605.0,31604.0,4.54992608]
[1609846868923,0.11353,31627.0,31604.0,4.54992608]
[1609846869122,0.11353,31627.0,31604.0,4.67946608]
[1609846869320,5.2191,31631.0,31604.0,4.67946608]
[1609846869521,5.2191,31631.0,31604.0,4.54314]
[1609846869721,0.0944,31630.0,31604.0,4.54314]
[1609846869923,0.13632608,31605.0,31604.0,4.54314]
[1609846870121,0.13632608,31605.0,31604.0,0.12954]
[1609846874423,0.13632608,31605.0,31601.0,0.0956]
[1609846874623,0.13632608,31605.0,31599.0,0.13632608]
[1609846875926,0.13632608,31600.0,31599.0,0.13632608]
[1609846876326,0.13632608,31600.0,31590.0,5.2095]
[1609846876526,0.13632608,31600.0,31590.0,5.32281]
[1609846878031,0.13632608,31591.0,31590.0,5.32281]
[1609846880734,0.13632608,31591.0,31590.0,0.11331]
[1609846881734,0.13632608,31591.0,31589.0,0.13632608]
[1609846892750,0.13632608,31591.0,31575.0,4.26]
[1609846893953,4.9452,31593.0,31575.0,4.26]
[1609846893954,0.13632608,31576.0,31575.0,4.26]
[1609846896355,0.13632608,31576.0,31563.0,1.96017128]
[1609846896755,0.23212608,31576.0,31563.0,1.96017128]
[1609846897455,0.23212608,31576.0,31564.0,1.96023041]
[1609846898056,0.13632608,31565.0,31564.0,1.96023041]
[1609846899257,0.13632608,31565.0,31563.0,0.13639]
[1609846899458,0.13632608,31565.0,31557.0,1.9643334]
[1609846899757,0.26897608,31565.0,31557.0,1.9643334]
[1609846899957,0.26897608,31565.0,31555.0,0.13632608]
[1609846899958,0.13632608,31558.0,31555.0,0.13632608]
[1609846904260,0.13632608,31558.0,31550.0,4.7973]
[1609846906162,4.6926,31568.0,31556.0,0.13632608]
[1609846906362,0.11851,31573.0,31557.0,5.2201]
[1609846906562,0.2945,31584.0,31557.0,5.2201]
[1609846906762,5.30486,31588.0,31557.0,5.2201]
[1609846908166,0.13632608,31562.0,31561.0,0.13632608]
[1609846908362,5.30486,31588.0,31561.0,0.13632608]
[1609846909365,0.09846,31588.0,31561.0,0.13632608]
[1609846909565,0.2757,31594.0,31566.0,4.2009]
[1609846909965,0.2757,31594.0,31566.0,4.32964]
[1609846911869,0.0937,31600.0,31566.0,4.32964]
[1609846912070,0.13632608,31567.0,31566.0,4.32964]
[1609846912273,0.13632608,31567.0,31566.0,0.12874]
[1609846913574,0.14043,31580.0,31566.0,0.12874]
[1609846914175,0.13632608,31567.0,31566.0,0.12874]
[1609846914975,0.13632608,31567.0,31564.0,0.13632608]
[1609846916877,0.13632608,31567.0,31564.0,0.80132608]
[1609846920178,0.13632608,31567.0,31564.0,0.665]
[1609846921883,0.13632608,31567.0,31564.0,0.78955]
[1609846922082,0.13632608,31567.0,31564.0,0.92587608]
[1609846922684,3.8103,31575.0,31564.0,0.92587608]
[1609846923986,0.11708,31587.0,31564.0,0.26087608]
[1609846924186,0.13632608,31578.0,31574.0,0.13632608]
[1609846924987,0.13632608,31578.0,31564.0,0.12455]
[1609846926190,4.2412,31585.0,31568.0,0.13632608]
[1609846928195,0.13632608,31569.0,31568.0,0.13632608]
[1609846930901,0.0998,31587.0,31568.0,0.13632608]
[1609846931102,0.14831,31594.0,31568.0,3.88922608]
[1609846931300,3.8516,31597.0,31568.0,3.88922608]
[1609846932201,3.8516,31597.0,31577.0,0.13632608]
[1609846932403,3.8516,31597.0,31574.0,0.14578]
[1609846932604,0.0938,31596.0,31574.0,0.14578]
[1609846932802,3.9617,31597.0,31574.0,0.14578]
[1609846932803,3.9617,31597.0,31575.0,0.6679]
[1609846934105,0.13632608,31576.0,31575.0,0.6679]
[1609846942817,0.10841,31589.0,31575.0,0.6679]
[1609846943016,0.1101,31597.0,31574.0,0.14578]
[1609846943217,0.2752,31599.0,31580.0,3.6382]
[1609846943616,0.69370746,31601.0,31580.0,3.6382]
[1609846944219,0.69403608,31604.0,31593.0,0.13632608]
[1609846944817,0.8482235,31607.0,31593.0,0.13632608]
[1609846944818,0.69395986,31607.0,31593.0,0.13632608]
[1609846945318,4.66383034,31609.0,31593.0,0.13632608]
[1609846945517,0.69393302,31610.0,31593.0,0.13632608]
[1609846946119,0.13632608,31594.0,31593.0,0.13632608]
[1609846948121,0.13632608,31594.0,31589.0,0.13632608]
[1609846948323,0.13632608,31594.0,31589.0,5.28892608]
[1609846950123,0.13632608,31590.0,31589.0,5.28892608]
[1609846950424,0.13632608,31590.0,31589.0,0.13632608]
[1609846953432,0.09263,31603.0,31589.0,0.13632608]
[1609846953631,0.69447519,31610.0,31589.0,0.13632608]
[1609846953831,0.69447519,31610.0,31595.0,4.2433]
[1609846954231,0.69447519,31610.0,31597.0,0.13632608]
[1609846955835,0.2925,31611.0,31597.0,0.13632608]
[1609846956034,0.69434095,31614.0,31597.0,0.13632608]
[1609846956236,0.13632608,31598.0,31595.0,4.2433]
[1609846956434,0.13632608,31598.0,31582.0,0.12701]
[1609846956635,0.13632608,31598.0,31585.0,4.521]
[1609846958238,0.13632608,31598.0,31596.0,0.13632608]
[1609846960943,0.13632608,31598.0,31585.0,4.521]
[1609846962343,3.6315,31611.0,31586.0,0.13632608]
[1609846962845,3.6315,31611.0,31585.0,4.521]
[1609846963043,3.8711,31611.0,31585.0,4.521]
[1609846963645,1.16013008,31610.0,31585.0,4.521]
[1609846964247,0.13632608,31586.0,31585.0,4.521]
[1609846964447,0.13632608,31586.0,31584.0,0.13632608]
[1609846965946,0.13632608,31586.0,31582.0,0.12701]
[1609846966147,4.4878,31585.0,31574.0,0.10721]
[1609846966348,4.4878,31585.0,31572.0,1.9934237]
[1609846966349,0.13632608,31575.0,31572.0,2.12974978]
[1609846967146,0.13632608,31575.0,31572.0,1.9934237]
[1609846971452,0.13632608,31575.0,31568.0,0.13632608]
[1609846972251,0.13632608,31569.0,31568.0,0.13632608]
[1609846975356,4.607,31580.0,31568.0,0.13632608]
[1609846975556,0.10709,31585.0,31568.0,0.13632608]
[1609846975759,0.11183,31593.0,31573.0,4.5623]
[1609846975956,0.30879103,31594.0,31573.0,4.68335]
[1609846976157,0.01949103,31594.0,31573.0,4.68335]
[1609846976356,0.13632608,31582.0,31578.0,0.13632608]
[1609846976757,0.13632608,31582.0,31580.0,4.683]
[1609846976956,0.13632608,31582.0,31580.0,4.79712]
[1609846983464,0.13632608,31582.0,31580.0,0.11412]
[1609846983662,0.13632608,31582.0,31578.0,0.13632608]
[1609846983862,0.13632608,31582.0,31573.0,0.12105]
[1609846984063,0.13632608,31582.0,31572.0,5.1359]
[1609846984363,5.2559,31588.0,31573.0,0.13632608]
[1609846984563,5.2559,31588.0,31573.0,0.24631608]
[1609846986067,5.2559,31588.0,31573.0,0.10999]
[1609846986467,0.13632608,31574.0,31573.0,0.10999]
[1609846989168,0.13632608,31574.0,31566.0,0.13632608]
[1609846990368,0.13632608,31567.0,31566.0,0.13632608]
[1609846992672,5.3055,31581.0,31566.0,0.13632608]
[1609846992872,0.10938,31587.0,31566.0,0.13632608]
[1609846993072,0.10938,31587.0,31570.0,4.6745]
[1609846994272,0.01948961,31591.0,31570.0,4.6745]
[1609846994473,0.01948961,31591.0,31572.0,0.13632608]
[1609846995573,0.57909237,31592.0,31572.0,0.13632608]
[1609846995574,0.59857937,31592.0,31572.0,0.13632608]
[1609846996073,0.59857937,31592.0,31571.0,0.11884]
[1609846996276,4.3749,31584.0,31571.0,0.11884]
[1609846996474,0.13632608,31572.0,31571.0,0.11884]
[1609846999778,0.13632608,31572.0,31567.0,0.13632608]
[1609847000179,0.13632608,31572.0,31571.0,4.0945]
[1609847000378,0.13632608,31572.0,31571.0,4.23082608]
[1609847000579,0.13632608,31572.0,31571.0,4.37678608]
[1609847002681,0.5982818,31593.0,31571.0,4.37678608]
[1609847004284,0.01947984,31593.0,31571.0,4.37678608]
[1609847004486,0.01947984,31593.0,31575.0,0.13632608]
[1609847004888,0.01947984,31593.0,31571.0,4.24046]
[1609847005089,0.0946,31592.0,31571.0,0.14596]
[1609847005487,3.5595,31586.0,31571.0,0.14596]
[1609847005688,3.5595,31586.0,31565.0,3.7196]
[1609847006389,3.5595,31586.0,31569.0,0.13632608]
[1609847007189,0.0946,31592.0,31569.0,0.13632608]
[1609847007393,0.0946,31592.0,31571.0,3.5867]
[1609847007696,0.01947839,31592.0,31571.0,3.5867]
[1609847007892,0.01947839,31592.0,31571.0,3.73254]
[1609847008395,0.13632608,31572.0,31571.0,3.73254]
[1609847008894,0.13632608,31572.0,31571.0,0.14584]
[1609847009495,0.13632608,31572.0,31571.0,0.78874]
[1609847025415,0.13632608,31572.0,31571.0,0.14584]
[1609847025817,0.13632608,31572.0,31569.0,0.13632608]
[1609847027216,0.13632608,31572.0,31571.0,4.4799]
[1609847027720,0.13632608,31572.0,31571.0,4.58197]
[1609847030522,0.13632608,31572.0,31571.0,0.10207]
[1609847032723,0.13632608,31572.0,31569.0,0.13632608]
[1609847036929,0.13632608,31572.0,31571.0,3.6975]
[1609847038931,0.13632608,31572.0,31569.0,0.13632608]
[1609847039130,0.13632608,31572.0,31571.0,0.1209]
[1609847040032,0.13632608,31572.0,31564.0,2.13880946]
[1609847040231,3.9447,31570.0,31564.0,2.13880946]
[1609847040633,0.13632608,31572.0,31564.0,0.12455]
[1609847040634,0.71862933,31565.0,31564.0,0.12455]
[1609847040835,0.86596933,31565.0,31564.0,0.12455]
[1609847041033,5.2168,31558.0,31543.0,2.02848682]
[1609847041233,5.2168,31558.0,31538.0,3.6979]
[1609847041634,5.2168,31558.0,31541.0,2.11939279]
[1609847042234,0.00407587,31556.0,31541.0,0.09075]
[1609847042637,0.0139744,31557.0,31544.0,0.13632608]
[1609847042835,0.0139744,31557.0,31545.0,0.6586]
[1609847043035,0.0139744,31557.0,31544.0,0.13632608]
[1609847043235,0.0139744,31557.0,31547.0,5.2668]
[1609847043436,0.00407587,31557.0,31547.0,5.2668]
[1609847044438,0.00407587,31557.0,31541.0,0.09075]
[1609847044637,0.00407587,31557.0,31553.0,3.7761]
[1609847044836,0.00407587,31557.0,31553.0,3.92611]
[1609847045037,0.00407587,31557.0,31553.0,0.15001]
[1609847045237,0.00407587,31557.0,31556.0,5.3057]
[1609847045639,0.01391534,31561.0,31556.0,5.3057]
[1609847045837,0.01391534,31561.0,31560.0,0.27006608]
[1609847046237,0.01391534,31561.0,31560.0,0.78216608]
[1609847046637,0.01391534,31561.0,31560.0,0.27006608]
[1609847046838,0.01391343,31577.0,31560.0,0.27006608]
[1609847047439,0.01391343,31577.0,31565.0,3.8697]
[1609847047640,0.01391213,31579.0,31565.0,3.8697]
[1609847047839,0.01391213,31579.0,31567.0,0.13632608]
[1609847048240,0.01391213,31579.0,31567.0,0.23836608]
[1609847048442,0.00405797,31576.0,31567.0,0.23836608]
[1609847049243,0.01391336,31576.0,31567.0,0.23836608]
[1609847049645,0.00405711,31575.0,31567.0,0.23836608]
[1609847049843,0.13632608,31568.0,31567.0,0.10204]
[1609847050444,0.13632608,31568.0,31561.0,3.9062]
[1609847051546,0.13632608,31568.0,31560.0,0.13374]
[1609847051747,0.13632608,31568.0,31553.0,4.09701]
[1609847051947,0.11868,31570.0,31553.0,4.09701]
[1609847051948,0.11868,31570.0,31556.0,0.13632608]
[1609847053448,0.11868,31570.0,31561.0,4.0503]
[1609847053849,0.11868,31570.0,31566.0,0.13632608]
[1609847054651,0.01390554,31573.0,31566.0,0.13632608]
[1609847055854,0.13632608,31567.0,31566.0,0.13632608]
[1609847056452,0.01390554,31573.0,31566.0,0.13632608]
[1609847056655,0.00405342,31575.0,31566.0,0.84362608]
[1609847057054,0.01389429,31580.0,31566.0,0.84362608]
[1609847057556,0.00405242,31581.0,31566.0,0.84362608]
[1609847057957,0.01389406,31582.0,31575.0,0.13632608]
[1609847058457,0.00405246,31582.0,31575.0,0.13632608]
[1609847059056,0.00405246,31582.0,31575.0,0.23072608]
[1609847059859,0.13632608,31576.0,31575.0,0.23072608]
[1609847061159,0.00405151,31587.0,31575.0,0.23072608]
[1609847061959,0.00405151,31587.0,31584.0,0.13632608]
[1609847062761,0.00405151,31587.0,31584.0,0.74922608]
[1609847062961,0.00405151,31587.0,31584.0,0.13632608]
[1609847063162,0.12124675,31588.0,31586.0,4.7843]
[1609847063361,0.30990578,31589.0,31586.0,4.7843]
[1609847063561,0.69473806,31591.0,31585.0,0.0954]
[1609847063762,0.56903806,31591.0,31588.0,4.0788]
[1609847063963,0.24323806,31591.0,31590.0,0.13632608]
[1609847064163,0.50419762,31592.0,31590.0,0.13632608]
[1609847064362,0.01329762,31592.0,31590.0,0.24781608]
[1609847064562,0.60984075,31595.0,31590.0,0.24781608]
[1609847064762,0.96422727,31598.0,31590.0,0.24781608]
[1609847064961,3.97040135,31630.0,31590.0,0.24781608]
[1609847064962,0.13632608,31617.0,31590.0,0.24781608]
[1609847065165,0.89901452,31625.0,31590.0,0.34151608]
[1609847065363,5.2072,31627.0,31590.0,0.34151608]
[1609847065761,1.07795207,31635.0,31608.0,4.1316]
[1609847065962,0.13632608,31629.0,31628.0,0.13632608]
[1609847066964,0.13632608,31629.0,31628.0,0.23062608]
[1609847067765,0.13632608,31629.0,31628.0,0.13632608]
[1609847068365,0.13632608,31629.0,31625.0,4.0652]
[1609847069967,0.13632608,31629.0,31627.0,0.13632608]
[1609847070568,0.13632608,31629.0,31625.0,4.0652]
[1609847070868,0.13632608,31629.0,31620.0,0.1291]
[1609847071269,4.8528,31626.0,31620.0,0.1291]
[1609847072071,4.8528,31626.0,31622.0,0.13632608]
[1609847072772,0.09807,31633.0,31622.0,0.13632608]
[1609847073172,1.07202893,31650.0,31622.0,0.13632608]
[1609847073371,3.6485,31645.0,31622.0,0.13632608]
[1609847073773,3.78961,31645.0,31622.0,0.13632608]
[1609847073971,3.78961,31645.0,31627.0,0.13632608]
[1609847074374,0.14111,31645.0,31627.0,0.13632608]
[1609847074772,0.14111,31645.0,31628.0,4.8903]